bitfinex/quotes_SOLUSD_20250721
["timestamp","ask_amount","ask_price","bid_price","bid_amount"]
[1753125683492,0.76,194.97,194.94,37.6]
[1753125683687,0.76,194.97,194.96,26.0]
[1753125683890,0.7,194.96,194.9,6.9909]
[1753125684093,0.7,194.96,194.91,48.1987144]
[1753125684601,0.7,194.96,194.94,26.0]
[1753125684802,0.7,194.95,194.94,26.0]
[1753125685178,0.7,194.95,194.91,53.32917164]
[1753125685378,104.28779496,194.97,194.94,26.0]
[1753125685694,0.7,194.96,194.91,37.6]
[1753125685993,0.7,194.95,194.91,37.6]
[1753125686185,0.7,194.95,194.94,26.0]
[1753125687899,16.42823478,194.95,194.9,26.0]
[1753125688203,10.5987144,194.92,194.85,7.0545]
[1753125688375,10.5987144,194.9,194.84,10.5987144]
[1753125688581,11.2987144,194.89,194.84,37.54]
[1753125688791,0.7,194.88,194.87,26.0]
[1753125688983,11.2987144,194.88,194.87,26.0]
[1753125689201,0.7,194.88,194.84,37.54]
[1753125689399,10.5987144,194.92,194.86,10.5987144]
[1753125689585,88.5,194.92,194.87,37.54]
[1753125689781,88.5,194.92,194.87,48.8187144]
[1753125690098,11.2987144,194.91,194.87,26.0]
[1753125690307,11.2987144,194.9,194.85,63.54]
[1753125690479,0.7,194.89,194.85,63.54]
[1753125690799,0.7,194.88,194.87,26.0]
[1753125691204,99.0987144,194.91,194.87,26.0]
[1753125691597,89.22,194.91,194.87,26.0]
[1753125691903,89.22,194.91,194.87,31.13156322]
[1753125692612,0.72,194.9,194.87,26.0]
[1753125692780,104.22937798,194.91,194.87,26.0]
[1753125692985,0.72,194.89,194.87,26.0]
[1753125693520,0.72,194.89,194.82,1.658]
[1753125693521,99.8187144,194.88,194.8,11.2987144]
[1753125693817,10.5987144,194.85,194.8,37.54]
[1753125693984,0.72,194.84,194.83,26.0]
[1753125694526,88.5,194.88,194.83,11.2987144]
[1753125694817,88.5,194.88,194.84,0.7]
[1753125695176,88.5,194.91,194.85,11.2987144]
[1753125695414,88.5,194.9,194.85,11.2987144]
[1753125695615,99.0987144,194.9,194.85,0.7]
[1753125695783,126.74,194.93,194.87,10.5987144]
[1753125696111,137.3387144,194.93,194.87,10.5987144]
[1753125696312,10.5987144,194.92,194.86,11.2987144]
[1753125696819,10.5987144,194.92,194.86,16.43047464]
[1753125696985,15.72916615,194.92,194.86,0.7]
[1753125697314,16.44916615,194.92,194.86,0.7]
[1753125697811,10.5987144,194.9,194.85,37.5]
[1753125698015,10.5987144,194.88,194.87,26.0]
[1753125698229,11.3187144,194.88,194.87,26.0]
[1753125698381,11.3187144,194.88,194.8,0.7]
[1753125698382,11.3187144,194.88,194.83,37.48]
[1753125698713,10.5987144,194.86,194.8,53.93214855]
[1753125699009,15.73063983,194.86,194.83,26.0]
[1753125699612,0.72,194.85,194.83,26.0]
[1753125700222,0.72,194.84,194.83,26.0]
[1753125700695,10.5987144,194.86,194.83,26.0]
[1753125700889,11.3187144,194.86,194.83,26.0]
[1753125701580,88.5,194.88,194.84,11.2987144]
[1753125701794,88.5,194.89,194.84,11.2987144]
[1753125702000,88.5,194.89,194.84,10.5987144]
[1753125702201,88.5,194.89,194.85,0.7]
[1753125702596,88.5,194.89,194.86,0.7]
[1753125702798,88.5,194.89,194.84,10.5987144]
[1753125703004,89.22,194.89,194.84,15.73112078]
[1753125703511,0.72,194.88,194.84,15.73112078]
[1753125704208,88.5,194.89,194.85,11.2987144]
[1753125704897,88.5,194.89,194.86,0.7]
[1753125705099,88.5,194.89,194.86,11.2987144]
[1753125705313,88.5,194.89,194.86,0.7]
[1753125705614,89.22,194.89,194.84,5.13234823]
[1753125705805,0.72,194.88,194.84,10.5987144]
[1753125706314,0.72,194.87,194.83,74.0387144]
[1753125707827,11.3187144,194.86,194.8,10.5987144]
[1753125708113,10.5987144,194.81,194.78,0.03]
[1753125708323,10.5987144,194.79,194.78,0.03]
[1753125708617,126.6,194.8,194.78,0.03]
[1753125708818,11.3187144,194.79,194.78,0.03]
[1753125709323,136.4787144,194.8,194.78,0.03]
[1753125709507,128.39145622,194.8,194.78,0.03]
[1753125710212,88.5,194.8,194.78,0.73]
[1753125710520,88.5,194.8,194.78,0.03]
[1753125710907,89.22,194.8,194.78,0.03]
[1753125711106,88.5,194.8,194.78,11.3287144]
[1753125711405,88.5,194.8,194.79,0.7]
[1753125711799,88.5,194.8,194.78,5.1637469]
[1753125712208,88.5,194.8,194.78,0.03]
[1753125713221,39.98729089,194.83,194.79,11.2987144]
[1753125713517,89.22,194.86,194.81,10.5987144]
[1753125713710,0.72,194.9,194.85,10.5987144]
[1753125713912,2.61190965,194.91,194.86,37.2987144]
[1753125714094,38.06,194.91,194.86,26.7]
[1753125714295,48.6587144,194.91,194.86,26.7]
[1753125714495,48.6587144,194.91,194.86,26.0]
[1753125714716,38.06,194.91,194.86,36.5987144]
[1753125715325,38.06,194.91,194.86,26.0]
[1753125715903,38.06,194.91,194.86,31.13184275]
[1753125716305,38.06,194.91,194.86,41.73055715]
[1753125716496,0.72,194.9,194.86,41.73055715]
[1753125716696,0.72,194.9,194.86,31.13184275]
[1753125717133,0.72,194.9,194.86,26.0]
[1753125717429,11.3187144,194.89,194.83,36.5987144]
[1753125717639,11.3187144,194.89,194.83,73.9187144]
[1753125717818,0.72,194.89,194.83,73.9187144]
[1753125717994,37.34,194.91,194.85,10.5987144]
[1753125718203,47.9387144,194.91,194.85,10.5987144]
[1753125718505,0.72,194.9,194.85,10.5987144]
[1753125718730,0.72,194.89,194.85,10.5987144]
[1753125720492,5.13115886,194.89,194.84,10.5987144]
[1753125720698,0.72,194.88,194.84,10.5987144]
[1753125721614,50.53634733,194.91,194.85,11.3187144]
[1753125721996,50.53634733,194.91,194.85,0.72]
[1753125722197,50.53634733,194.91,194.86,0.72]
[1753125722395,50.53634733,194.91,194.87,0.72]
[1753125722396,39.93763293,194.91,194.87,0.72]
[1753125722619,50.53634733,194.91,194.85,10.5987144]
[1753125722824,56.36697099,194.91,194.85,0.72]
[1753125722998,10.5987144,194.9,194.85,0.72]
[1753125723327,0.7,194.9,194.85,0.72]
[1753125723498,0.7,194.9,194.86,5.13188956]
[1753125723694,0.7,194.9,194.85,16.45084753]
[1753125724123,0.7,194.89,194.84,15.73106471]
[1753125724316,0.7,194.89,194.84,16.45106471]
[1753125724699,0.7,194.88,194.83,63.32]
[1753125724897,0.7,194.87,194.83,73.9187144]
[1753125725133,0.7,194.9,194.86,10.5987144]
[1753125725435,39.83763293,194.91,194.87,0.72]
[1753125725633,128.33763293,194.91,194.87,0.72]
[1753125725870,88.5,194.91,194.89,10.5987144]
[1753125726025,2.66200658,194.95,194.9,11.3187144]
[1753125726228,88.56,194.97,194.93,10.5987144]
[1753125726405,89.26,194.97,194.93,10.5987144]
[1753125726902,89.26,194.97,194.89,32.4121]
[1753125726903,10.5987144,194.95,194.89,32.4121]
[1753125727246,10.5987144,194.92,194.88,26.0]
[1753125727530,0.7,194.91,194.88,26.0]
[1753125727909,5.83067525,194.91,194.88,26.0]
[1753125728105,0.7,194.91,194.88,26.0]
[1753125728936,88.5,194.94,194.9,10.5987144]
[1753125729131,88.5,194.94,194.91,0.72]
[1753125729308,42.36959356,194.95,194.89,47.8387144]
[1753125729517,52.96830796,194.95,194.89,48.5587144]
[1753125729714,52.96830796,194.95,194.89,53.68977943]
[1753125729915,52.96830796,194.95,194.89,37.96]
[1753125730226,52.96830796,194.95,194.86,0.51318895]
[1753125730227,10.5987144,194.92,194.87,37.24]
[1753125730537,11.2987144,194.92,194.87,26.72]
[1753125730710,37.24,194.95,194.89,10.5987144]
[1753125730915,37.24,194.95,194.9,11.3187144]
[1753125731232,0.06,194.97,194.92,26.0]
[1753125731423,0.06,194.97,194.93,0.72]
[1753125731629,0.06,194.97,194.94,0.72]
[1753125732131,0.06,194.97,194.92,41.72900537]
[1753125732311,0.06,194.97,194.93,0.72]
[1753125732710,0.7,194.96,194.92,26.0]
[1753125733839,5.82930419,194.96,194.92,26.0]
[1753125735425,5.88930419,194.96,194.92,26.0]
[1753125735935,16.48801859,194.96,194.92,26.0]
[1753125736326,16.48801859,194.96,194.9,0.72]
[1753125736327,0.7,194.95,194.9,0.72]
[1753125736527,0.7,194.95,194.92,26.0]
[1753125736731,10.5987144,194.93,194.89,26.0]
[1753125736938,10.5987144,194.93,194.9,26.0]
[1753125737117,88.5,194.95,194.91,44.54819199]
[1753125737317,88.5,194.95,194.92,0.72]
[1753125737529,88.5,194.95,194.93,0.72]
[1753125738239,7.32819199,194.94,194.91,26.0]
[1753125738434,0.7,194.93,194.91,26.0]
[1753125739220,7.32819199,194.92,194.85,1.5699]
[1753125739437,6.62819199,194.91,194.86,37.2]
[1753125739745,37.2,194.94,194.89,6.62819199]
[1753125739916,37.2,194.94,194.89,32.62819199]
[1753125740112,6.62819199,194.94,194.9,0.72]
[1753125740334,7.32819199,194.93,194.89,26.0]
[1753125740718,6.62819199,194.94,194.9,0.72]
[1753125741642,7.32819199,194.94,194.89,26.0]
[1753125741940,7.32819199,194.94,194.89,26.72]
[1753125742440,7.32819199,194.94,194.89,31.851067]
[1753125742936,6.62819199,194.94,194.89,31.131067]
[1753125743150,88.5,194.95,194.93,6.62819199]
[1753125743358,0.06,194.96,194.94,52.38489199]
[1753125743532,0.06,194.96,194.95,7.14114402]
[1753125743837,0.06,194.96,194.95,7.86114402]
[1753125744443,0.06,194.96,194.95,12.47771237]
[1753125744840,0.06,194.96,194.95,49.67771237]
[1753125745631,0.06,194.96,194.95,12.47771237]
[1753125745952,0.06,194.96,194.95,49.67771237]
[1753125748382,0.06,194.96,194.95,66.46239634]
[1753125748560,0.06,194.97,194.95,66.46239634]
[1753125748763,0.06,194.97,194.96,24.64580168]
[1753125748952,0.06,194.99,194.98,42.78468397]
[1753125749257,0.06,194.99,194.98,86.59287596]
[1753125749560,0.06,195.04,195.02,26.0]
[1753125749746,0.06,195.04,195.03,52.56753361]
[1753125749944,0.06,195.04,195.03,52.05479199]
[1753125750153,0.06,195.04,195.03,57.90220828]
[1753125752754,0.06,195.04,195.03,74.68689225]
[1753125752946,0.06,195.04,195.03,75.19963387]
[1753125753155,0.06,195.04,195.03,79.15790309]
[1753125753757,0.06,195.05,195.03,79.15790309]
[1753125753758,0.2,195.11,195.04,16.78468397]
[1753125754062,0.2,195.11,195.08,27.37114518]
[1753125754252,0.2,195.11,195.08,64.55114518]
[1753125754452,0.2,195.11,195.08,70.34724729]
[1753125754848,1e-08,195.09,195.08,70.34724729]
[1753125755255,1e-08,195.09,195.08,59.76078608]
[1753125755462,1e-08,195.09,195.08,70.34724729]
[1753125756962,1e-08,195.09,195.08,59.76078608]
[1753125757153,1e-08,195.09,195.08,70.34724729]
[1753125758042,0.2,195.11,195.1,16.78468397]
[1753125758244,0.2,195.11,195.1,65.04370284]
[1753125758440,0.2,195.11,195.1,65.71370284]
[1753125758646,0.2,195.11,195.1,74.25901887]
[1753125758944,0.2,195.11,195.07,10.58646121]
[1753125759143,0.88,195.11,195.1,26.0]
[1753125759366,0.2,195.11,195.1,26.0]
[1753125760063,0.88,195.11,195.07,52.87269167]
[1753125760260,0.2,195.11,195.09,10.58646121]
[1753125760446,0.2,195.11,195.09,73.74646121]
[1753125760646,0.2,195.11,195.1,10.58646121]
[1753125760958,0.2,195.11,195.1,11.25646121]
[1753125762170,0.2,195.11,195.1,16.38203783]
[1753125763405,0.2,195.11,195.1,33.1667218]
[1753125765853,1e-08,195.12,195.11,1.5399]
[1753125766049,0.2,195.15,195.11,1.5399]
[1753125766050,0.2,195.15,195.14,26.0]
[1753125766245,0.2,195.15,195.14,74.9089138]
[1753125766554,0.2,195.15,195.1,5.12557662]
[1753125766555,0.88,195.15,195.1,5.12557662]
[1753125766759,0.88,195.15,195.14,26.0]
[1753125767068,0.2,195.15,195.14,26.0]
[1753125767463,0.88,195.15,195.14,26.0]
[1753125769756,0.2,195.15,195.14,26.0]
[1753125770852,16.59072459,195.15,195.05,0.67]
[1753125771052,10.58646121,195.09,195.03,17.76628504]
[1753125771378,10.58646121,195.08,195.04,37.14]
[1753125771557,10.58646121,195.1,195.05,0.67]
[1753125771752,11.26646121,195.12,195.07,5.12636489]
[1753125771958,0.68,195.12,195.08,37.14]
[1753125773280,0.68,195.11,195.1,26.0]
[1753125773850,0.2,195.15,195.1,42.93557662]
[1753125774178,0.2,195.15,195.1,53.52203783]
[1753125775066,0.2,195.15,195.11,0.67]
[1753125775370,0.68,195.14,195.12,63.14]
[1753125775591,11.26646121,195.13,195.12,26.0]
[1753125775766,0.68,195.13,195.12,26.0]
[1753125775972,10.58646121,195.14,195.12,26.0]
[1753125776167,11.26646121,195.14,195.12,26.0]
[1753125776363,0.68,195.13,195.12,26.0]
[1753125776763,0.2,195.15,195.13,26.0]
[1753125776973,0.2,195.15,195.14,26.0]
[1753125778081,0.88,195.15,195.14,26.0]
[1753125778979,0.2,195.15,195.14,26.0]
[1753125780075,0.2,195.15,195.14,68.26452598]
[1753125780280,11.46646121,195.15,195.1,0.51255766]
[1753125780460,1.6352,195.1,195.06,0.03]
[1753125780775,10.58646121,195.07,195.06,0.03]
[1753125781171,11.26646121,195.07,195.06,0.03]
[1753125782179,16.3928261,195.07,195.06,0.03]
[1753125782379,5.80636489,195.07,195.06,0.03]
[1753125782586,16.3928261,195.07,195.06,0.03]
[1753125783387,88.5,195.09,195.06,0.03]
[1753125783388,10.58646121,195.09,195.06,0.03]
[1753125783880,0.68,195.09,195.06,0.03]
[1753125785276,11.26646121,195.09,195.06,0.03]
[1753125785983,11.26646121,195.08,195.06,0.03]
[1753125786369,0.68,195.07,195.06,0.03]
[1753125787690,10.58646121,195.08,195.06,0.03]
[1753125788284,88.5,195.1,195.06,0.03]
[1753125788588,0.68,195.08,195.06,26.03]
[1753125788989,10.58646121,195.08,195.06,0.03]
[1753125789183,0.68,195.07,195.06,0.03]
[1753125789485,5.80636489,195.07,195.06,0.03]
[1753125789788,0.68,195.07,195.06,0.03]
[1753125792194,5.80636489,195.07,195.06,0.03]
[1753125792586,0.68,195.07,195.06,0.03]
[1753125793696,5.80636489,195.07,195.06,0.03]
[1753125794084,16.3928261,195.07,195.06,0.03]
[1753125794391,70.29751007,195.07,195.06,0.03]
[1753125794594,18.44268397,195.06,195.02,0.03]
[1753125794801,2.338,195.06,195.02,0.03]
[1753125794979,10.58646121,195.03,195.02,0.03]
[1753125795494,37.8,195.05,195.02,0.03]
[1753125795678,11.26646121,195.05,195.02,0.03]
[1753125796267,10.58646121,195.04,195.02,0.03]
[1753125797077,11.26646121,195.04,195.02,0.03]
[1753125797275,160.2293107,195.09,195.03,6.62328666]
[1753125797604,6.62328666,195.1,195.03,26.66]
[1753125797798,6.62328666,195.07,195.03,26.0]
[1753125797975,0.68,195.06,195.05,26.0]
[1753125799002,88.5,195.09,195.05,26.66]
[1753125799370,95.80328666,195.09,195.05,26.0]
[1753125799573,0.68,195.08,195.05,26.0]
[1753125800211,0.68,195.08,195.06,26.0]
[1753125800414,95.12328666,195.09,195.04,26.0]
[1753125800574,7.30328666,195.08,195.04,26.0]
[1753125800944,0.68,195.07,195.06,26.0]
[1753125801314,6.62328666,195.08,195.06,26.0]
[1753125801605,88.5,195.09,195.06,26.66]
[1753125801777,0.06,195.13,195.08,6.62328666]
[1753125801977,0.06,195.13,195.09,0.66]
[1753125802508,0.06,195.13,195.09,12.40902286]
[1753125802686,0.06,195.13,195.12,26.0]
[1753125803579,0.06,195.13,195.11,32.62328666]
[1753125804013,0.06,195.13,195.11,33.28328666]
[1753125804615,0.06,195.13,195.12,0.66]
[1753125806101,0.06,195.13,195.12,11.75573062]
[1753125806427,0.06,195.13,195.12,16.88078187]
[1753125808306,0.06,195.13,195.12,44.24869134]
[1753125808819,0.2,195.15,195.14,16.78468397]
[1753125809030,0.2,195.15,195.14,64.98036206]
[1753125809321,0.2,195.15,195.14,65.64036206]
[1753125809723,0.2,195.15,195.14,38.27245259]
[1753125809906,0.2,195.15,195.14,74.3432255]
[1753125810924,0.2,195.15,195.14,79.46775148]
[1753125811123,0.2,195.15,195.14,26.0]
[1753125811423,0.2,195.15,195.14,63.1]
[1753125811717,0.2,195.15,195.14,74.3832255]
[1753125813003,0.2,195.15,195.14,79.50775148]
[1753125813723,0.2,195.15,195.14,96.29243545]
[1753125813927,0.2,195.15,195.14,96.80488804]
[1753125816509,0.2,195.15,195.14,74.3832255]
[1753125816915,0.2,195.15,195.14,79.50775148]
[1753125817826,0.2,195.15,195.13,31.12474442]
[1753125818031,0.87,195.15,195.12,10.5832255]
[1753125818207,0.87,195.15,195.14,26.0]
[1753125818405,0.87,195.15,195.12,47.6632255]
[1753125818627,0.87,195.15,195.14,26.0]
[1753125818809,0.2,195.15,195.14,36.5832255]
[1753125819004,0.2,195.15,195.14,73.6632255]
[1753125820229,0.2,195.15,195.14,63.08]
[1753125822031,0.2,195.15,195.14,74.3632255]
[1753125822421,0.2,195.15,195.14,79.48775148]
[1753125823512,0.2,195.15,195.14,96.27243545]
[1753125825212,0.2,195.15,195.14,36.5832255]
[1753125825417,0.2,195.15,195.14,74.3632255]
[1753125826215,0.2,195.15,195.14,91.14790947]
[1753125826415,0.2,195.15,195.14,96.27243545]
[1753125827334,0.2,195.15,195.14,100.4783081]
[1753125827831,0.2,195.17,195.15,23.39282953]
[1753125828028,0.2,195.17,195.16,60.98522961]
[1753125828334,0.2,195.17,195.16,61.68522961]
[1753125828730,0.2,195.17,195.16,66.80923042]
[1753125830642,0.06,195.19,195.17,16.78468397]
[1753125830820,0.06,195.19,195.18,44.18049313]
[1753125831022,0.06,195.19,195.18,51.48863869]
[1753125831326,0.06,195.23,195.22,50.61958397]
[1753125831520,0.06,195.23,195.22,160.19997212]
[1753125831829,0.06,195.23,195.22,160.38772953]
[1753125832213,0.06,195.25,195.22,160.38772953]
[1753125832414,0.06,195.25,195.23,37.76]
[1753125832721,0.06,195.25,195.23,43.66814556]
[1753125832924,0.06,195.25,195.23,49.30252552]
[1753125833113,0.06,195.25,195.23,66.78720949]
[1753125839135,0.06,195.25,195.24,16.78468397]
[1753125839337,0.06,195.25,195.24,23.39282953]
[1753125839516,1e-08,195.26,195.24,24.09282953]
[1753125839716,0.06,195.29,195.23,42.69437996]
[1753125839717,0.06,195.29,195.28,26.0]
[1753125839911,0.06,195.29,195.28,93.5530603]
[1753125840142,0.67,195.36,195.28,93.5530603]
[1753125840143,0.06,195.37,195.29,16.78468397]
[1753125840325,0.06,195.37,195.33,16.78468397]
[1753125840518,0.06,195.37,195.34,60.94475745]
[1753125840838,0.06,195.37,195.34,66.06403665]
[1753125841065,0.06,195.37,195.35,16.78468397]
[1753125841251,0.06,195.37,195.36,44.16002107]
[1753125841423,0.06,195.37,195.36,44.86002107]
[1753125842843,0.06,195.37,195.36,7.82002107]
[1753125843138,0.06,195.37,195.36,44.86002107]
[1753125843345,0.06,195.37,195.36,69.64814556]
[1753125843528,7.34814556,195.37,195.36,26.0]
[1753125843732,7.34814556,195.37,195.36,37.02]
[1753125843919,7.34814556,195.37,195.36,26.0]
[1753125844260,0.06,195.37,195.36,69.62814556]
[1753125845238,0.06,195.37,195.36,63.02]
[1753125845756,0.74,195.37,195.36,63.02]
[1753125845924,7.34814556,195.37,195.31,6.60814556]
[1753125846127,7.28814556,195.36,195.32,63.02]
[1753125846434,0.06,195.37,195.32,69.62814556]
[1753125846435,0.68,195.35,195.32,69.62814556]
[1753125847944,0.68,195.35,195.32,63.02]
[1753125848246,0.68,195.34,195.32,63.02]
[1753125850642,0.06,195.37,195.36,26.0]
[1753125850846,0.74,195.37,195.36,26.0]
[1753125851544,0.06,195.37,195.36,26.0]
[1753125852247,0.06,195.37,195.35,37.02]
[1753125852248,0.06,195.37,195.35,43.62814556]
[1753125852544,0.06,195.37,195.36,0.51187551]
[1753125853729,0.06,195.37,195.36,1.21187551]
[1753125853929,0.06,195.37,195.36,0.51187551]
[1753125854154,0.74,195.37,195.36,63.0]
[1753125854340,0.06,195.37,195.36,63.0]
[1753125855245,0.74,195.37,195.36,63.0]
[1753125856246,0.06,195.37,195.36,63.0]
[1753125856851,0.06,195.37,195.36,63.7]
[1753125857050,0.06,195.37,195.36,63.0]
[1753125857740,5.85849311,195.37,195.36,63.0]
[1753125858238,5.85849311,195.37,195.33,6.60814556]
[1753125858239,12.46663867,195.37,195.33,26.0]
[1753125858451,6.60814556,195.34,195.25,6.60814556]
[1753125858639,6.60814556,195.31,195.26,37.0]
[1753125858953,0.68,195.3,195.29,26.0]
[1753125859251,0.68,195.3,195.29,63.0]
[1753125859751,0.68,195.3,195.29,37.0]
[1753125859953,5.8003277,195.3,195.26,6.60814556]
[1753125860246,5.8003277,195.3,195.29,26.0]
[1753125860450,5.12002627,195.32,195.29,63.0]
[1753125860843,5.80002627,195.32,195.29,63.0]
[1753125861041,1.6474,195.35,195.29,63.0]
[1753125861247,0.68,195.35,195.33,26.0]
[1753125861443,5.79903528,195.35,195.33,63.0]
[1753125861642,7.28814556,195.34,195.33,63.0]
[1753125862036,12.40742476,195.34,195.33,63.0]
[1753125862234,12.40742476,195.34,195.33,26.0]
[1753125863259,5.7992792,195.34,195.33,26.0]
[1753125864862,0.68,195.34,195.33,26.0]
[1753125865841,5.7992792,195.34,195.33,26.0]
[1753125866262,5.1192792,195.34,195.33,26.0]
[1753125866452,5.7992792,195.34,195.33,26.0]
[1753125868139,12.40742476,195.34,195.33,26.0]
[1753125868342,12.40742476,195.34,195.24,0.7]
[1753125868343,12.40742476,195.34,195.29,37.0]
[1753125868541,6.60814556,195.3,195.21,0.73]
[1753125868738,6.60814556,195.29,195.23,6.60814556]
[1753125868962,7.28814556,195.29,195.27,26.0]
[1753125869182,7.28814556,195.29,195.26,63.0]
[1753125869464,0.68,195.28,195.26,63.0]
[1753125869964,5.80105602,195.28,195.26,63.0]
[1753125870360,11.72839767,195.31,195.26,63.0]
[1753125870565,6.60814556,195.29,195.26,63.0]
[1753125870758,0.68,195.28,195.26,63.0]
[1753125870959,6.60814556,195.29,195.26,63.0]
[1753125871163,0.68,195.27,195.26,63.0]
[1753125872158,5.12098955,195.28,195.26,63.0]
[1753125872371,5.80063869,195.29,195.26,63.0]
[1753125872751,5.11980339,195.32,195.27,7.29814556]
[1753125872956,5.11957738,195.33,195.31,26.0]
[1753125873268,12.40772294,195.33,195.31,62.98]
[1753125873579,0.68,195.32,195.3,36.98]
[1753125874553,5.11957738,195.33,195.3,36.98]
[1753125874749,12.40772294,195.33,195.3,36.98]
[1753125875150,11.72743328,195.34,195.3,36.98]
[1753125875375,7.28814556,195.33,195.3,36.98]
[1753125876075,12.40772472,195.33,195.3,36.98]
[1753125876765,5.79957916,195.33,195.3,36.98]
[1753125876958,11.72774288,195.33,195.3,36.98]
[1753125877265,6.60814556,195.31,195.21,0.03]
[1753125877473,6.60814556,195.26,195.23,36.98]
[1753125877671,7.28814556,195.26,195.25,26.0]
[1753125877970,7.28814556,195.26,195.23,36.98]
[1753125878275,5.80144573,195.26,195.25,26.0]
[1753125878569,5.80144573,195.26,195.23,36.98]
[1753125878754,12.40959129,195.26,195.23,36.98]
[1753125878955,12.40959129,195.26,195.25,26.0]
[1753125879168,12.40959129,195.26,195.23,36.98]
[1753125879370,12.40959129,195.26,195.25,26.0]
[1753125879562,5.80144573,195.26,195.25,26.0]
[1753125881457,12.40959129,195.26,195.25,26.0]
[1753125881765,7.28814556,195.26,195.25,26.0]
[1753125881964,0.68,195.26,195.25,26.0]
[1753125882273,11.72931725,195.27,195.26,26.0]
[1753125882479,12.40931725,195.27,195.26,26.0]
[1753125882680,11.72931725,195.27,195.23,36.98]
[1753125882857,0.68,195.29,195.24,7.29814556]
[1753125883058,95.10814556,195.3,195.25,37.67]
[1753125883357,6.60814556,195.3,195.25,37.67]
[1753125883565,6.60814556,195.29,195.25,37.67]
[1753125883768,11.72888328,195.29,195.25,37.67]
[1753125888487,6.60814556,195.32,195.29,26.0]
[1753125888657,5.79921043,195.35,195.31,26.0]
[1753125888857,5.79921043,195.35,195.33,26.0]
[1753125888858,6.60814556,195.35,195.33,26.0]
[1753125889078,88.56,195.37,195.33,26.69]
[1753125889079,0.06,195.37,195.33,26.69]
[1753125889278,0.06,195.37,195.34,0.69]
[1753125889777,0.06,195.37,195.35,26.0]
[1753125889984,6.66814556,195.37,195.35,26.0]
[1753125890569,0.06,195.37,195.35,26.0]
[1753125890882,5.17856486,195.37,195.35,26.0]
[1753125891679,0.06,195.37,195.35,26.0]
[1753125893783,11.78671168,195.37,195.35,26.0]
[1753125894088,12.46671168,195.37,195.35,26.0]
[1753125895382,0.06,195.37,195.35,26.0]
[1753125897893,0.06,195.37,195.34,36.98]
[1753125898262,11.78682515,195.37,195.34,36.98]
[1753125898467,6.60814556,195.35,195.34,26.0]
[1753125898771,7.28814556,195.35,195.34,26.0]
[1753125899085,6.60814556,195.36,195.35,26.0]
[1753125899465,7.28814556,195.36,195.35,26.0]
[1753125900091,12.40690067,195.36,195.35,26.0]
[1753125900388,12.40690067,195.36,195.26,1.5708]
[1753125900588,6.60814556,195.27,195.21,8.9818]
[1753125900891,6.60814556,195.24,195.21,0.03]
[1753125901097,0.68,195.26,195.21,0.03]
[1753125901391,88.5,195.25,195.21,0.03]
[1753125901563,0.71,195.24,195.21,0.03]
[1753125902165,5.1221636,195.23,195.21,0.03]
[1753125902488,54.8675726,195.23,195.17,0.03]
[1753125902788,6.60814556,195.18,195.17,0.03]
[1753125903170,7.31814556,195.18,195.17,0.03]